bitfinex-derivatives/quotes_SOLF0:USTF0_20241227
["timestamp","ask_amount","ask_price","bid_price","bid_amount"]
[1735314617412,2.7266,183.65,183.56,13.9107]
[1735314618112,6.424,183.71,183.58,20.65352934]
[1735314618308,4.14,183.75,183.61,20.65352934]
[1735314618504,4.14,183.77,183.62,4.14]
[1735314619211,9.6687,183.8,183.64,20.65352934]
[1735314619412,9.6687,183.8,183.67,20.65352934]
[1735314619605,2.7246,183.78,183.71,2.7255]
[1735314619810,9.6687,183.8,183.71,2.7255]
[1735314620005,9.6687,183.8,183.68,4.14]
[1735314620213,2.7248,183.76,183.69,2.7259]
[1735314620406,9.6687,183.8,183.68,4.14]
[1735314621219,20.65352934,183.79,183.63,4.14]
[1735314621412,20.65352934,183.76,183.63,6.8668]
[1735314621610,24.79352934,183.76,183.63,6.8668]
[1735314622113,2.7257,183.71,183.64,2.7266]
[1735314622408,24.79352934,183.76,183.63,4.14]
[1735314622614,24.79352934,183.76,183.57,30.59572934]
[1735314622615,20.65352934,183.73,183.57,30.59572934]
[1735314622814,3.1471,183.72,183.58,4.14]
[1735314623018,2.726,183.69,183.58,4.14]
[1735314623318,6.4053,183.71,183.58,4.14]
[1735314623513,2.726,183.69,183.58,4.14]
[1735314623817,6.4053,183.71,183.58,4.14]
[1735314624306,2.7263,183.66,183.59,2.7272]
[1735314624511,6.4053,183.71,183.58,4.14]
[1735314624705,6.4053,183.71,183.57,9.9422]
[1735314624909,2.7266,183.64,183.58,2.7274]
[1735314625109,24.79352934,183.7,183.57,9.9422]
[1735314625413,2.7265,183.65,183.59,2.7273]
[1735314625811,7.48299343,183.78,183.57,30.59572934]
[1735314626017,20.65352934,183.76,183.58,1.00180822]
[1735314626212,2.7256,183.71,183.64,2.7266]
[1735314626512,2.7256,183.71,183.61,4.14]
[1735314626712,2.7254,183.73,183.61,4.14]
[1735314627020,9.499,183.77,183.63,20.65352934]
[1735314627216,12.2238,183.77,183.64,1.00148923]
[1735314627614,12.2238,183.77,183.65,3.322]
[1735314627814,9.499,183.77,183.65,3.322]
[1735314628314,9.499,183.77,183.66,3.222]
[1735314628517,9.499,183.77,183.67,4.14]
[1735314628716,2.725,183.75,183.69,2.7258]
[1735314629319,20.65352934,183.76,183.65,3.322]
[1735314629521,9.499,183.77,183.65,3.322]
[1735314629828,2.7249,183.76,183.7,2.7257]
[1735314630021,9.499,183.77,183.7,2.7257]
[1735314630211,6.2644,183.77,183.66,20.65352934]
[1735314630522,34.07197373,183.82,183.66,24.06712934]
[1735314630720,2.848972,183.81,183.69,20.65352934]
[1735314631026,29.93197373,183.82,183.72,20.65352934]
[1735314631317,59.86394747,183.83,183.73,3.3177]
[1735314631615,3.1792,183.84,183.73,3.3177]
[1735314631822,2.7235,183.85,183.73,3.3177]
[1735314632010,2.85254918,183.84,183.73,3.3177]
[1735314632215,28.13652277,183.88,183.73,3.3177]
[1735314632419,2.85249437,183.87,183.73,3.3177]
[1735314632719,2.85249437,183.86,183.73,3.3177]
[1735314632920,2.85249437,183.85,183.75,20.65352934]
[1735314633118,2.85422244,183.84,183.76,7.2709]
[1735314633322,109.08997732,183.89,183.76,7.2709]
[1735314633613,2.85377878,183.88,183.76,7.2709]
[1735314633810,2.85377878,183.87,183.77,3.1939]
[1735314634013,2.85377878,183.86,183.82,2.7238]
[1735314634211,10.60139343,183.94,183.82,4.14]
[1735314634422,2.85486947,183.93,183.82,4.14]
[1735314634617,2.85486947,183.92,183.82,4.14]
[1735314634819,10.60139343,183.94,183.82,4.14]
[1735314634820,2.85486947,183.91,183.82,4.14]
[1735314635013,2.85486947,183.9,183.82,4.14]
[1735314635318,2.85486947,183.89,183.82,4.14]
[1735314635519,20.65352934,183.92,183.82,4.14]
[1735314635716,3.1184,183.94,183.82,4.14]
[1735314637021,2.7228,183.9,183.82,4.14]
[1735314637317,20.65352934,183.98,183.82,4.14]
[1735314637521,33.26417373,183.99,183.87,20.65352934]
[1735314637822,33.26417373,183.99,183.88,4.14]
[1735314638522,2.722,183.95,183.88,4.14]
[1735314639316,3.3322,183.99,183.88,4.14]
[1735314639621,2.7224,183.93,183.88,4.14]
[1735314639921,2.7221,183.95,183.88,4.14]
[1735314640123,3.3322,183.99,183.88,4.14]
[1735314640519,6.0538,183.99,183.9,2.7227]
[1735314640723,20.65352934,183.98,183.88,4.14]
[1735314640920,24.77352934,183.98,183.83,3.3358]
[1735314641112,24.77352934,183.98,183.84,4.12]
[1735314641318,20.65352934,183.95,183.83,3.3358]
[1735314641521,20.65352934,183.95,183.83,4.12]
[1735314641822,20.65352934,183.95,183.81,4.12]
[1735314642025,2.7231,183.88,183.81,4.12]
[1735314642319,20.65352934,183.92,183.79,81.02779723]
[1735314642522,6.6388,183.91,183.79,81.02779723]
[1735314642922,2.7234,183.86,183.79,81.02779723]
[1735314643313,3.2988,183.9,183.75,20.65352934]
[1735314643513,20.65352934,183.89,183.73,6.2987]
[1735314643715,20.65352934,183.86,183.73,6.2987]
[1735314643924,20.65352934,183.86,183.74,4.12]
[1735314644520,2.7238,183.84,183.75,2.7249]
[1735314644830,20.65352934,183.86,183.75,2.7249]
[1735314645525,2.7238,183.83,183.75,2.7249]
[1735314645920,3.2988,183.9,183.74,4.12]
[1735314646122,23.95232934,183.9,183.75,20.65352934]
[1735314646623,2.7232,183.88,183.75,20.65352934]
[1735314647222,2.7232,183.87,183.75,20.65352934]
[1735314648428,2.7232,183.87,183.79,2.7243]
[1735314648923,23.95232934,183.9,183.79,4.12]
[1735314650032,2.7238,183.83,183.73,3.215]
[1735314650227,20.65352934,183.84,183.72,3.2398]
[1735314650532,4.12,183.85,183.67,3.1506]
[1735314650533,20.65352934,183.81,183.67,3.1506]
[1735314650723,3.1447,183.8,183.69,2.7259]
[1735314651527,2.7248,183.77,183.68,6.846]
[1735314651727,3.1447,183.8,183.67,3.1506]
[1735314652027,3.1447,183.8,183.67,7.2706]
[1735314652432,2.7248,183.76,183.69,2.7259]
[1735314653127,2.7248,183.76,183.67,7.2706]
[1735314653128,3.1447,183.8,183.67,4.12]
[1735314653330,20.65352934,183.78,183.67,4.12]
[1735314653533,2.7256,183.71,183.64,2.7266]
[1735314653834,20.65352934,183.75,183.61,4.12]
[1735314654131,3.1887,183.74,183.61,4.12]
[1735314654325,2.7258,183.7,183.61,6.8469]
[1735314654627,20.65352934,183.78,183.63,20.65352934]
[1735314654834,20.65352934,183.78,183.61,4.12]
[1735314654835,3.2017,183.78,183.66,20.65352934]
[1735314655030,3.2017,183.78,183.67,4.12]
[1735314655430,3.2017,183.78,183.67,10.6155]
[1735314655630,5.9262,183.78,183.67,10.6155]
[1735314655829,5.9262,183.78,183.67,13.7903]
[1735314656328,3.2017,183.78,183.67,13.7903]
[1735314656828,3.1887,183.79,183.69,20.65352934]
[1735314657224,7.2319,183.83,183.76,2.7248]
[1735314657225,3.1119,183.83,183.76,2.7248]
[1735314657430,3.1119,183.83,183.73,4.12]
[1735314658335,5.8357,183.83,183.75,2.7249]
[1735314659437,5.8357,183.83,183.76,2.7248]
[1735314660037,2.724,183.82,183.75,2.725]
[1735314660229,3.1119,183.83,183.73,4.12]
[1735314660542,3.1119,183.83,183.69,20.65352934]
[1735314660734,3.1119,183.83,183.7,4.12]
[1735314661035,3.1119,183.83,183.71,4.12]
[1735314661332,2.724,183.82,183.75,2.725]
[1735314661536,3.1119,183.83,183.71,4.12]
[1735314662730,2.7244,183.79,183.71,6.8454]
[1735314662932,3.388,183.88,183.73,20.65352934]
[1735314663235,3.388,183.88,183.76,20.65352934]
[1735314663537,2.7229,183.9,183.81,2.7241]
[1735314663830,2.7229,183.9,183.79,20.65352934]
[1735314664031,7.48299343,183.92,183.87,2.7232]
[1735314664234,3.1513,183.97,183.88,20.65352934]
[1735314664433,29.93197373,183.99,183.89,4.12]
[1735314665234,7.48299343,183.99,183.89,4.12]
[1735314665528,2.7215,183.99,183.89,4.12]
[1735314665837,30.27992934,184.04,183.89,4.12]
[1735314666233,20.65352934,184.01,183.89,4.12]
[1735314667532,2.7219,183.97,183.89,4.12]
[1735314668636,30.27992934,184.04,183.89,4.12]
[1735314669032,30.27992934,184.04,183.91,2.7225]
[1735314669033,2.7213,184.0,183.91,2.7225]
[1735314669236,2.7213,184.0,183.89,10.7462]
[1735314669534,2.721,184.03,183.95,2.7219]
[1735314669734,9.6264,184.04,183.96,4.12]
[1735314670132,29.93197373,184.11,183.97,20.65352934]
[1735314670436,3.3531,184.1,183.97,20.65352934]
[1735314671340,2.7201,184.09,184.01,2.7211]
[1735314671634,3.3531,184.1,183.97,20.65352934]
[1735314671842,2.7207,184.05,183.97,2.7217]
[1735314672140,24.00662934,184.1,183.96,4.12]
[1735314672439,2.7201,184.09,184.01,2.7211]
[1735314672638,6.737,184.11,184.01,2.7211]
[1735314673037,9.4568,184.11,184.02,2.7209]
[1735314673232,9.4568,184.11,184.02,6.8409]
[1735314674038,2.7198,184.1,184.02,6.8409]
[1735314674229,6.737,184.11,184.02,6.8409]
[1735314675033,6.737,184.11,184.02,4.12]
[1735314675234,3.4079,184.12,184.03,20.65352934]
[1735314676139,3.4079,184.12,184.02,4.12]
[1735314676334,2.7197,184.11,184.04,2.7207]
[1735314676735,3.4079,184.12,184.04,20.65352934]
[1735314676941,3.099,184.23,184.1,20.65352934]
[1735314677143,3.1317,184.22,184.11,4.12]
[1735314677936,23.78522934,184.22,184.11,4.12]
[1735314678139,2.7184,184.2,184.13,2.7193]
[1735314678334,3.1317,184.22,184.11,4.12]
[1735314678535,6.4658,184.23,184.13,20.65352934]
[1735314678937,3.3016,184.27,184.13,20.65352934]
[1735314680143,2.7181,184.22,184.13,23.37272934]
[1735314680445,3.3016,184.27,184.13,23.37272934]
[1735314680944,3.3016,184.27,184.11,4.12]
[1735314681543,3.3016,184.27,184.12,2.7195]
[1735314682246,3.3016,184.27,184.16,20.65352934]
[1735314682442,3.3016,184.27,184.17,4.12]
[1735314682744,2.7177,184.25,184.17,4.12]
[1735314684537,2.7177,184.25,184.17,6.8388]
[1735314686338,6.5352,184.3,184.17,4.12]
[1735314686544,2.7174,184.27,184.19,2.7184]
[1735314687145,9.7411,184.3,184.2,20.65352934]
[1735314687347,20.65352934,184.37,184.2,20.65352934]
[1735314687543,2.7164,184.33,184.26,2.7174]
[1735314687741,9.7335,184.36,184.27,4.12]
[1735314687944,190.92743118,184.4,184.27,4.12]
[1735314688242,20.65352934,184.45,184.27,4.12]
[1735314688740,2.7162,184.35,184.28,2.7171]
[1735314688944,20.65352934,184.42,184.27,4.12]
[1735314689244,2.7167,184.32,184.27,4.12]
[1735314689449,9.9246,184.34,184.27,4.12]
[1735314689855,2.7168,184.31,184.27,4.12]
[1735314690244,9.9246,184.34,184.27,4.12]
[1735314690445,2.717,184.3,184.27,4.12]
[1735314690747,9.9246,184.34,184.27,4.12]
[1735314691740,9.9246,184.34,184.28,4.12]
[1735314692352,2.7169,184.3,184.28,4.12]
[1735314693049,2.7166,184.32,184.28,4.12]
[1735314693849,12.6409,184.34,184.28,4.12]
[1735314694149,12.641,184.34,184.28,4.12]
[1735314694351,9.9246,184.34,184.28,4.12]
[1735314694741,2.7169,184.3,184.28,4.12]
[1735314695544,30.57812934,184.34,184.27,4.12]
[1735314695750,20.65352934,184.31,184.21,56.5]
[1735314696162,2.7178,184.24,184.22,4.12]
[1735314696751,20.65352934,184.31,184.21,56.5]
[1735314696946,20.65352934,184.31,184.22,4.12]
[1735314697654,2.7179,184.23,184.22,4.12]
[1735314697956,20.65352934,184.39,184.22,4.12]
[1735314698254,2.7163,184.34,184.26,2.7174]
[1735314698550,194.0,184.42,184.26,2.7174]
[1735314698551,20.65352934,184.38,184.26,2.7174]
[1735314698746,2.7165,184.33,184.27,2.7173]
[1735314698964,20.65352934,184.38,184.28,4.12]
[1735314700053,20.65352934,184.38,184.28,6.8371]
[1735314700352,20.65352934,184.42,184.28,4.12]
[1735314700545,2.7161,184.36,184.28,4.12]
[1735314701052,2.7161,184.36,184.29,2.717]
[1735314701457,2.7164,184.34,184.28,4.12]
[1735314702156,2.7161,184.35,184.28,4.12]
[1735314702348,9.9162,184.41,184.28,4.12]
[1735314703153,2.7158,184.38,184.28,6.8371]
[1735314703356,9.9162,184.41,184.28,6.8371]
[1735314703951,9.9162,184.41,184.28,4.12]
[1735314705254,2.7163,184.34,184.28,4.12]
[1735314705454,9.9162,184.41,184.28,4.12]
[1735314706252,9.9162,184.41,184.28,6.8371]
[1735314706558,2.7163,184.35,184.28,6.8371]
[1735314706861,20.65352934,184.39,184.28,4.12]
[1735314707057,2.7164,184.34,184.28,4.12]
[1735314707653,2.7165,184.33,184.28,4.12]
[1735314707853,20.65352934,184.39,184.28,4.12]
[1735314708956,2.7167,184.33,184.28,4.12]
[1735314709460,2.7168,184.32,184.28,4.12]
[1735314709658,6.5459,184.41,184.29,2.7171]
[1735314709859,27.19942934,184.41,184.29,2.7171]
[1735314710057,2.7164,184.35,184.29,2.7171]
[1735314710859,6.5459,184.41,184.31,20.65352934]
[1735314711256,6.5459,184.41,184.28,24.77352934]
[1735314711858,27.19942934,184.41,184.29,4.12]
[1735314712058,27.19942934,184.41,184.3,4.12]
[1735314712559,2.7167,184.33,184.3,4.12]
[1735314712754,3.1888,184.44,184.3,4.12]
[1735314712956,20.65352934,184.42,184.3,4.12]
[1735314713158,2.7164,184.35,184.3,4.12]
[1735314713356,20.65352934,184.42,184.3,4.12]
[1735314714264,20.65352934,184.42,184.31,4.12]
[1735314714466,2.7165,184.34,184.31,4.12]
[1735314714661,20.65352934,184.42,184.31,4.12]
[1735314715069,2.7163,184.36,184.31,4.12]
[1735314715264,2.7163,184.36,184.3,2.717]
[1735314715568,2.7166,184.33,184.31,4.12]
[1735314715767,2.7166,184.33,184.32,4.12]
[1735314716968,20.65352934,184.36,184.29,4.12]
[1735314717167,3.1134,184.32,184.29,4.12]
[1735314717367,2.717,184.3,184.29,4.12]
[1735314717771,3.1134,184.32,184.29,4.12]
[1735314718471,3.1134,184.32,184.21,59.6016]
[1735314718861,3.1134,184.32,184.22,4.12]
[1735314719572,2.7173,184.29,184.23,2.7179]
[1735314719877,2.7173,184.29,184.22,4.12]
[1735314720078,2.7173,184.28,184.22,6.8381]
[1735314720278,2.7173,184.28,184.22,4.12]
[1735314720775,2.7172,184.29,184.24,2.7179]
[1735314721372,2.7172,184.29,184.22,4.12]
[1735314721373,2.7172,184.29,184.23,2.7181]
[1735314721783,2.7174,184.28,184.23,2.7181]
[1735314722382,2.7174,184.28,184.22,6.8382]
[1735314722977,3.1134,184.32,184.23,4.12]
[1735314723377,7.48299343,184.36,184.25,20.65352934]
[1735314723573,7.48299343,184.36,184.27,2.7175]
[1735314723978,10.19919343,184.36,184.29,2.7171]
[1735314724277,7.48299343,184.36,184.3,4.12]
[1735314724484,7.48299343,184.36,184.31,3.391]
[1735314724984,7.48299343,184.36,184.33,2.7165]
[1735314725176,7.48299343,184.36,184.31,24.04452934]
[1735314725377,22.4489803,184.37,184.32,3.1087]
[1735314725573,22.4489803,184.37,184.33,3.1136]
[1735314725775,7.54319985,184.4,184.33,3.1136]
[1735314727185,10.25879985,184.4,184.33,3.1136]
[1735314727381,2.7156,184.4,184.33,3.1136]
[1735314727679,3.1251,184.45,184.33,3.1136]
[1735314727885,3.1251,184.45,184.31,24.04452934]
[1735314728387,20.65352934,184.43,184.31,3.391]
[1735314728581,20.65352934,184.43,184.3,4.12]
[1735314728582,2.7166,184.33,184.3,4.12]
[1735314729587,3.1762,184.42,184.3,4.12]
[1735314731184,2.7161,184.37,184.3,6.837]
[1735314731884,2.7162,184.36,184.3,6.837]
[1735314732282,3.1762,184.42,184.3,4.12]
[1735314732883,2.7158,184.39,184.3,4.12]
[1735314733084,3.1762,184.42,184.3,4.12]
[1735314734086,2.7165,184.34,184.3,4.12]
[1735314734287,22.4489803,184.43,184.31,20.65352934]
[1735314734681,22.4489803,184.42,184.31,20.65352934]
[1735314734985,2.7156,184.4,184.34,2.7163]
[1735314735385,2.7156,184.4,184.31,20.65352934]
[1735314735584,3.1136,184.46,184.33,2.7166]
[1735314735785,2.716,184.38,184.34,4.1]
[1735314736382,2.716,184.38,184.35,4.1]
[1735314736783,2.716,184.38,184.36,4.1]
[1735314737487,20.65352934,184.43,184.33,4.1]
[1735314737689,20.65352934,184.43,184.34,4.1]
[1735314738291,2.7164,184.35,184.34,4.1]
[1735314740892,20.65352934,184.4,184.26,6.5966]
[1735314741096,2.717,184.31,184.27,4.1]
[1735314742094,20.65352934,184.4,184.28,4.1]
[1735314742692,2.717,184.31,184.28,4.1]
[1735314742993,22.4489803,184.41,184.28,4.1]
[1735314743195,22.4489803,184.41,184.32,20.65352934]
[1735314743391,22.4489803,184.41,184.32,23.37022934]
[1735314743596,22.4489803,184.42,184.32,20.65352934]
[1735314743793,22.4489803,184.42,184.29,20.65352934]
[1735314744393,2.7159,184.38,184.29,20.65352934]
[1735314744595,129.40929253,184.45,184.3,2.717]
[1735314744796,129.40929253,184.45,184.29,20.65352934]
[1735314745897,2.7161,184.37,184.29,23.37052934]
[1735314746198,2.7161,184.37,184.29,20.65352934]
[1735314746899,2.7161,184.37,184.3,2.717]
[1735314747999,2.7159,184.38,184.31,2.7168]
[1735314748199,129.40929253,184.45,184.29,20.65352934]
[1735314748498,2.7158,184.39,184.32,2.7166]
[1735314748999,2.7158,184.39,184.33,2.7166]
[1735314749197,2.7158,184.39,184.34,4.1]
[1735314750095,129.40929253,184.45,184.34,4.1]
[1735314750296,2.7155,184.41,184.34,6.8164]
[1735314750492,129.40929253,184.45,184.34,4.1]
[1735314750797,2.7153,184.42,184.34,6.8164]
[1735314750998,108.75576319,184.45,184.34,4.1]
[1735314751397,2.7151,184.44,184.37,2.716]
[1735314751597,3.1136,184.46,184.37,2.716]
[1735314752400,2.7152,184.43,184.37,2.716]
[1735314753803,2.7151,184.43,184.36,2.7161]
[1735314754403,3.1136,184.46,184.35,9.4562]
[1735314754605,15.96539403,184.46,184.35,9.4562]
[1735314755204,2.7154,184.42,184.35,12.1725]
[1735314755704,2.7155,184.41,184.35,12.1725]
[1735314755900,12.85179403,184.43,184.36,4.1]
[1735314756102,3.1136,184.46,184.37,4.1]
[1735314756499,2.7154,184.41,184.37,4.1]
[1735314762309,3.1136,184.46,184.37,4.1]
[1735314762310,2.7156,184.4,184.37,4.1]
[1735314764510,2.7156,184.4,184.34,2.7164]
[1735314764713,12.85179403,184.44,184.32,12.85179403]
[1735314764912,12.85179403,184.41,184.35,4.1]
[1735314765612,2.7157,184.4,184.35,4.1]
[1735314765811,12.85179403,184.41,184.35,4.1]
[1735314766111,2.7161,184.37,184.35,4.1]
[1735314767013,2.7162,184.36,184.35,4.1]
[1735314767212,12.85179403,184.38,184.34,4.1]
[1735314767515,12.85179403,184.38,184.26,19.19699403]
[1735314767516,35.04634207,184.43,184.33,4.1]
[1735314767811,12.85179403,184.4,184.33,4.1]
[1735314768013,2.7165,184.34,184.26,5.8836]
[1735314768205,12.85179403,184.34,184.27,4.1]
[1735314768618,2.7169,184.32,184.27,4.1]
[1735314768814,12.85179403,184.34,184.27,4.1]
[1735314769417,2.717,184.31,184.27,4.1]
[1735314769910,2.7171,184.3,184.27,4.1]
[1735314770109,12.85179403,184.34,184.28,4.1]
[1735314770314,12.85179403,184.34,184.22,69.29179403]
[1735314770515,12.85179403,184.34,184.23,4.1]
[1735314770909,2.7171,184.3,184.23,6.818]
[1735314771615,12.85179403,184.34,184.23,6.818]
[1735314772412,2.7174,184.28,184.23,4.1]
[1735314772615,12.85179403,184.31,184.22,56.44]
[1735314772809,12.85179403,184.31,184.24,4.1]
[1735314773315,2.7175,184.28,184.22,56.44]
[1735314773610,3.2781,184.3,184.23,4.1]
[1735314773817,12.85179403,184.29,184.23,4.1]
[1735314774716,12.85179403,184.29,184.22,56.44]
[1735314774916,12.85179403,184.29,184.23,4.1]
[1735314775416,2.7176,184.27,184.23,4.1]
[1735314775613,12.85179403,184.29,184.22,56.44]
[1735314775819,12.85179403,184.26,184.23,4.1]
[1735314776715,2.7179,184.24,184.23,4.1]
[1735314779523,12.85179403,184.26,184.17,6.4443]
[1735314779822,12.85179403,184.23,184.18,4.1]
[1735314780219,12.85179403,184.23,184.19,4.1]
[1735314780416,12.85179403,184.23,184.11,6.2556]
[1735314780617,12.85179403,184.23,184.16,4.1]
[1735314781513,12.85179403,184.2,184.11,9.4453]
[1735314781717,2.7196,184.13,184.12,4.1]
[1735314782124,12.85179403,184.17,184.1,56.46]
[1735314782317,2.7196,184.13,184.12,4.1]
[1735314782716,2.7199,184.11,184.1,56.46]
[1735314782922,12.85179403,184.11,184.09,4.1]
[1735314783318,2.7201,184.1,184.09,4.1]
[1735314783824,12.85179403,184.11,184.0,12.85179403]
[1735314784122,12.85179403,184.11,184.01,4.1]
[1735314785223,12.85179403,184.08,184.01,4.1]
[1735314785418,12.85179403,184.08,183.97,66.2637]
[1735314785617,2.7215,184.0,183.98,4.1]
[1735314785824,12.85179403,184.05,183.98,4.1]
[1735314786023,12.85179403,184.02,183.98,4.1]
[1735314786627,12.85179403,184.05,183.98,4.1]
[1735314787022,12.85179403,184.02,183.98,4.1]
[1735314787327,2.7216,183.99,183.98,4.1]
[1735314787826,2.7218,183.98,183.97,56.48]
[1735314788127,2.7218,183.98,183.97,60.58]
[1735314789719,12.85179403,184.05,183.97,60.58]
[1735314790025,12.85179403,184.08,183.97,60.58]
[1735314790221,12.85179403,184.08,183.97,73.43179403]
[1735314790619,2.7207,184.06,183.97,76.15359403]
[1735314791021,2.7207,184.06,183.98,2.7218]
[1735314791226,2.7205,184.07,183.97,73.43179403]
[1735314791725,2.7205,184.07,184.0,12.85179403]
[1735314791929,12.85179403,184.11,184.0,12.85179403]
[1735314792228,16.21699403,184.14,184.01,9.5363]
[1735314792429,121.76230763,184.17,184.03,12.85179403]
[1735314792624,121.76230763,184.17,184.06,12.85179403]
[1735314792829,108.9105136,184.17,184.06,12.85179403]
[1735314793031,2.7193,184.15,184.08,2.7202]
[1735314793231,12.85179403,184.2,184.06,12.85179403]
[1735314793531,2.7188,184.19,184.11,2.7199]
[1735314793725,2.7188,184.19,184.12,4.1]
[1735314793928,12.85179403,184.23,184.12,16.95179403]
[1735314794128,12.85179403,184.23,184.13,3.3405]
[1735314794325,12.85179403,184.23,184.13,6.4406]
[1735314794533,2.7185,184.2,184.13,6.4406]
[1735314795531,12.85179403,184.23,184.13,6.4406]
[1735314795732,12.85179403,184.17,184.14,4.1]
[1735314796128,12.89280444,184.16,184.14,4.1]
[1735314796336,20.62718499,184.18,184.14,4.1]
[1735314796537,2.7194,184.15,184.14,4.1]
[1735314797236,2.7191,184.17,184.14,4.1]
[1735314797634,20.62718499,184.18,184.14,4.1]
[1735314798532,2.719,184.17,184.14,4.1]
[1735314799340,2.7189,184.18,184.14,4.1]
[1735314799838,2.719,184.17,184.14,4.1]
[1735314800334,20.62718499,184.21,184.14,4.1]
[1735314800538,3.1186,184.24,184.14,4.1]
[1735314800539,23.74578499,184.24,184.14,4.1]
[1735314801439,2.719,184.17,184.14,4.1]
[1735314802135,2.7188,184.19,184.14,4.1]
[1735314802538,23.74578499,184.24,184.14,4.1]
[1735314803639,108.84244129,184.3,184.14,81.22718499]
[1735314803837,20.62718499,184.34,184.17,20.62718499]
[1735314804041,20.62718499,184.34,184.23,2.7181]
[1735314804242,20.62718499,184.34,184.24,4.1]
[1735314804939,20.62718499,184.31,184.24,4.1]
[1735314805242,2.7178,184.25,184.24,4.1]
[1735314805444,20.62718499,184.28,184.2,4.1]
[1735314805735,20.62718499,184.25,184.2,4.1]
[1735314805943,2.7184,184.22,184.2,4.1]
[1735314806238,20.62718499,184.25,184.2,4.1]
[1735314806438,2.7184,184.21,184.2,4.1]
[1735314807235,2.7182,184.22,184.2,4.1]
[1735314807439,6.5469,184.26,184.2,4.1]
[1735314807740,3.2384,184.26,184.2,4.1]
[1735314808241,2.7181,184.24,184.2,4.1]
[1735314808436,3.2384,184.26,184.2,4.1]
[1735314808648,2.7182,184.22,184.2,4.1]
[1735314809237,2.7179,184.25,184.2,4.1]
[1735314809444,3.1005,184.27,184.2,4.1]
[1735314809837,2.7179,184.24,184.2,4.1]
[1735314810439,3.1005,184.27,184.2,4.1]
[1735314811947,20.62718499,184.28,184.2,4.1]
[1735314813141,2.7177,184.26,184.2,4.1]
[1735314813334,3.3944,184.32,184.2,4.1]
[1735314813841,3.3944,184.32,184.21,3.1759]
[1735314814041,2.7172,184.29,184.21,3.1759]
[1735314814438,2.7172,184.29,184.22,2.7182]
[1735314814838,23.75558499,184.34,184.21,3.1759]
[1735314815038,2.7168,184.32,184.25,2.7177]
[1735314815245,2.7168,184.32,184.26,4.1]
[1735314816343,129.44667205,184.37,184.26,4.1]
[1735314816944,2.7171,184.3,184.26,4.1]
[1735314817645,129.44667205,184.37,184.26,4.1]
[1735314818847,2.7166,184.33,184.27,2.7175]
[1735314819245,2.7166,184.33,184.26,4.1]
[1735314820048,2.7166,184.33,184.26,6.8176]
[1735314821046,129.44667205,184.37,184.26,4.1]
[1735314821645,2.7175,184.28,184.22,3.1792]
[1735314821951,20.62718499,184.34,184.23,4.1]
[1735314822149,20.62718499,184.34,184.24,4.1]
[1735314822353,20.62718499,184.34,184.22,3.1792]
[1735314822547,20.62718499,184.34,184.25,4.1]
[1735314823148,20.62718499,184.34,184.26,4.1]
[1735314824553,2.7174,184.29,184.26,4.1]
[1735314825353,20.62718499,184.34,184.21,3.1759]
[1735314825547,20.62718499,184.34,184.22,4.1]
[1735314826143,2.7177,184.26,184.22,4.1]
[1735314826349,2.7177,184.26,184.21,3.1759]
[1735314826649,20.62718499,184.34,184.22,4.1]
[1735314827055,2.7175,184.28,184.22,4.1]
[1735314827454,20.62718499,184.34,184.22,6.8182]